bitfinex/quotes_BTCUSD_20220204
["timestamp","ask_amount","ask_price","bid_price","bid_amount"]
[1643941972713,0.066969,37340.0,37336.0,0.3185602]
[1643941972914,0.066969,37340.0,37338.0,0.05]
[1643941974814,0.066969,37340.0,37337.0,0.05]
[1643941975015,0.066969,37340.0,37336.0,0.081968]
[1643941976066,0.066969,37340.0,37336.0,0.015]
[1643941976266,0.116969,37340.0,37336.0,0.01575766]
[1643941976866,0.116969,37340.0,37336.0,0.24185059]
[1643941977267,0.116969,37340.0,37336.0,0.24109293]
[1643941977466,0.116969,37340.0,37336.0,0.30881959]
[1643941977865,0.066969,37340.0,37336.0,0.30881959]
[1643941978267,0.066969,37340.0,37336.0,0.24185059]
[1643941978466,0.066969,37340.0,37336.0,0.24109293]
[1643941978670,0.066969,37340.0,37336.0,0.24185059]
[1643941979119,0.066969,37340.0,37336.0,0.30881959]
[1643941979514,0.066969,37340.0,37336.0,0.30806193]
[1643941979718,0.066969,37340.0,37336.0,0.30881959]
[1643941979917,0.066969,37340.0,37336.0,0.30381959]
[1643941980218,0.066963,37342.0,37338.0,0.05]
[1643941980419,0.00075745,37346.0,37345.0,0.72914104]
[1643941980617,0.00075745,37346.0,37345.0,1.36598343]
[1643941980816,0.59137999,37353.0,37345.0,1.36598343]
[1643941980817,0.22917999,37353.0,37345.0,1.36598343]
[1643941981019,0.25581365,37354.0,37345.0,0.25346252]
[1643941981020,0.00075753,37347.0,37345.0,0.25346252]
[1643941981419,0.00075753,37347.0,37345.0,2.48985512]
[1643941982019,0.27909346,37350.0,37345.0,2.48985512]
[1643941982219,0.00075752,37348.0,37345.0,2.48985512]
[1643941982419,0.00075752,37348.0,37345.0,2.55680612]
[1643941982860,0.00075752,37348.0,37345.0,2.57775301]
[1643941983262,0.05,37350.0,37347.0,0.05]
[1643941983568,0.00075752,37348.0,37346.0,0.25105063]
[1643941983764,0.00075752,37348.0,37347.0,0.75]
[1643941984364,0.25895128,37351.0,37347.0,0.05]
[1643941984567,0.00075751,37349.0,37345.0,2.46080201]
[1643941984766,0.00075751,37349.0,37348.0,0.05]
[1643941985566,0.066946,37351.0,37348.0,0.05]
[1643941985767,0.0007575,37350.0,37348.0,0.05]
[1643941986823,0.066946,37351.0,37347.0,0.066944]
[1643941988018,0.066946,37351.0,37349.0,0.05]
[1643941988218,0.066946,37351.0,37347.0,0.066944]
[1643941988418,0.066946,37351.0,37349.0,0.066947]
[1643941988918,0.066946,37351.0,37349.0,0.116947]
[1643941989117,0.066946,37351.0,37349.0,0.066947]
[1643941989322,0.066946,37351.0,37349.0,0.116947]
[1643941992864,0.066946,37351.0,37349.0,0.066947]
[1643941993266,0.066946,37351.0,37346.0,0.05]
[1643941994013,0.066946,37351.0,37350.0,0.05]
[1643941995214,0.066946,37351.0,37350.0,0.29688388]
[1643941995419,0.00075781,37352.0,37350.0,0.1038]
[1643941996413,0.20396866,37359.0,37352.0,0.066929]
[1643941996615,0.51935037,37360.0,37355.0,0.27768793]
[1643941996816,0.51935037,37360.0,37356.0,0.0538]
[1643941996817,0.61291176,37359.0,37356.0,0.0538]
[1643941997019,0.350457,37359.0,37356.0,0.0538]
[1643941997316,0.066931,37359.0,37356.0,0.0538]
[1643941997766,0.06768875,37359.0,37356.0,0.12073]
[1643941998364,0.06768875,37359.0,37356.0,0.0538]
[1643941998765,0.066931,37359.0,37356.0,0.0538]
[1643941998967,0.06768875,37359.0,37356.0,0.0538]
[1643941999167,0.350457,37358.0,37356.0,0.0538]
[1643941999570,0.06768875,37359.0,37356.0,0.0538]
[1643941999968,0.066931,37359.0,37356.0,0.0538]
[1643942000169,0.06768875,37359.0,37356.0,0.0538]
[1643942000570,0.350457,37358.0,37356.0,0.0538]
[1643942000969,0.484332,37358.0,37356.0,0.0538]
[1643942002516,0.066937,37358.0,37356.0,0.0538]
[1643942005368,0.0668723,37358.0,37356.0,0.0538]
[1643942006168,0.0668723,37358.0,37357.0,0.05]
[1643942006470,0.00075776,37359.0,37357.0,0.29811296]
[1643942006674,0.00075776,37359.0,37358.0,1.170726]
[1643942007169,0.001,37366.0,37358.0,1.170726]
[1643942007372,0.001,37366.0,37364.0,0.05]
[1643942007570,0.350457,37365.0,37364.0,2.0864206]
[1643942007770,0.001,37366.0,37364.0,2.1533396]
[1643942008371,0.001,37366.0,37364.0,0.116919]
[1643942008571,0.350457,37365.0,37364.0,0.116919]
[1643942009417,0.800457,37365.0,37364.0,0.116919]
[1643942009719,0.800457,37365.0,37363.0,0.0538]
[1643942009720,0.417383,37365.0,37363.0,0.0538]
[1643942010817,0.28521572,37363.0,37358.0,0.24746453]
[1643942011018,0.01948635,37362.0,37359.0,0.0538]
[1643942011419,0.01948635,37362.0,37361.0,0.133838]
[1643942011617,0.066927,37363.0,37361.0,0.133838]
[1643942011818,0.05,37364.0,37361.0,0.133838]
[1643942012220,0.05075772,37364.0,37361.0,0.133838]
[1643942012425,0.05075772,37364.0,37359.0,0.0538]
[1643942012680,0.29670927,37357.0,37354.0,0.1038]
[1643942013271,0.29670927,37357.0,37354.0,0.0538]
[1643942013471,0.98229829,37355.0,37354.0,0.0538]
[1643942013674,0.98229829,37355.0,37352.0,0.02055323]
[1643942013675,0.08229829,37355.0,37352.0,0.02055323]
[1643942013874,0.14924229,37355.0,37352.0,0.02055323]
[1643942014474,0.08229829,37355.0,37352.0,0.02055323]
[1643942014674,0.08305607,37355.0,37352.0,0.15442123]
[1643942015177,0.08305607,37355.0,37352.0,0.133868]
[1643942015374,0.13305607,37355.0,37352.0,0.133868]
[1643942015575,0.13229829,37355.0,37351.0,0.066942]
[1643942015874,0.13305607,37355.0,37351.0,0.33430528]
[1643942016273,0.05075778,37355.0,37351.0,0.33430528]
[1643942016812,0.05,37355.0,37351.0,0.33430528]
[1643942017012,0.05075779,37355.0,37351.0,0.38430528]
[1643942017213,0.00075779,37355.0,37351.0,0.38430528]
[1643942018014,0.05,37356.0,37351.0,0.116942]
[1643942018416,0.00075779,37355.0,37351.0,0.116942]
[1643942018616,0.05,37353.0,37351.0,0.066942]
[1643942019018,0.05,37353.0,37352.0,0.19443137]
[1643942019218,0.05,37355.0,37352.0,0.89443137]
[1643942019418,0.00075779,37354.0,37352.0,0.89443137]
[1643942019617,0.00075779,37354.0,37352.0,1.02829937]
[1643942020018,0.00075779,37354.0,37352.0,1.07829937]
[1643942020468,0.29670927,37357.0,37352.0,1.07829937]
[1643942020668,0.00075779,37355.0,37352.0,1.07829937]
[1643942021369,0.00075779,37355.0,37354.0,1.916932]
[1643942021570,0.00028185,37355.0,37354.0,2.061762]
[1643942021770,0.24378104,37363.0,37356.0,0.133848]
[1643942021968,0.24378104,37363.0,37356.0,0.237648]
[1643942022371,0.24378104,37363.0,37361.0,0.2534355]
[1643942022571,0.001,37366.0,37362.0,0.066922]
[1643942022772,0.051,37366.0,37362.0,0.066922]
[1643942022976,0.001,37366.0,37362.0,0.066922]
[1643942023171,0.067922,37366.0,37362.0,0.066922]
[1643942023572,0.33199968,37365.0,37362.0,0.066922]
[1643942024011,0.28199968,37365.0,37362.0,0.066922]
[1643942024212,0.33275775,37365.0,37362.0,0.066922]
[1643942024613,0.05,37364.0,37362.0,0.066922]
[1643942026017,0.34864604,37364.0,37362.0,0.066922]
[1643942027116,0.41557204,37364.0,37359.0,0.133842]
[1643942027315,0.05,37360.0,37359.0,0.133842]
[1643942027673,0.36557204,37364.0,37359.0,0.133842]
[1643942027864,0.00070692,37361.0,37359.0,0.133842]
[1643942028065,0.05,37360.0,37359.0,0.133842]
[1643942028667,0.00070692,37361.0,37359.0,0.133842]
[1643942028865,0.36557204,37364.0,37359.0,0.133842]
[1643942029066,0.05,37360.0,37359.0,0.133842]
[1643942029268,0.00070692,37361.0,37359.0,0.133842]
[1643942029465,0.05,37360.0,37359.0,0.133842]
[1643942030771,0.05,37360.0,37356.0,0.237655]
[1643942030971,0.00071038,37361.0,37356.0,0.237655]
[1643942031171,0.27685786,37357.0,37356.0,0.187655]
[1643942031431,0.27685786,37357.0,37349.0,0.22609293]
[1643942031625,0.05,37350.0,37349.0,0.066946]
[1643942032024,0.05,37350.0,37349.0,0.816946]
[1643942032325,0.05,37352.0,37349.0,1.05272979]
[1643942032524,0.05,37357.0,37350.0,0.09731182]
[1643942032725,0.00071034,37357.0,37355.0,0.23591315]
[1643942032922,0.05,37356.0,37352.0,0.066932]
[1643942033124,0.05,37353.0,37352.0,0.066932]
[1643942033924,0.05,37353.0,37352.0,0.31147225]
[1643942035573,0.1167,37361.0,37352.0,0.31147225]
[1643942035574,0.05,37363.0,37353.0,2.05]
[1643942035775,0.0057,37366.0,37356.0,0.29301193]
[1643942035975,0.001,37366.0,37357.0,0.53972981]
[1643942036270,0.001,37366.0,37357.0,0.1038]
[1643942036271,0.05,37361.0,37357.0,0.1038]
[1643942036470,0.05,37361.0,37358.0,0.19117189]
[1643942036670,0.40624124,37365.0,37363.0,2.05619379]
[1643942037069,0.3136968,37365.0,37364.0,0.06692]
[1643942037269,0.3636968,37365.0,37364.0,0.06692]
[1643942039718,0.3636968,37365.0,37364.0,1.06692]
[1643942040818,0.3636968,37365.0,37364.0,0.4541168]
[1643942041220,0.3136968,37365.0,37364.0,0.4541168]
[1643942041524,0.05174288,37366.0,37364.0,0.58794692]
[1643942041719,0.05174288,37366.0,37364.0,0.4541168]
[1643942042221,0.051,37366.0,37364.0,0.4541168]
[1643942043463,0.051,37366.0,37364.0,0.58794991]
[1643942049123,0.051,37366.0,37364.0,0.5210358]
[1643942052367,0.051,37366.0,37364.0,0.4960358]
[1643942054921,0.051,37366.0,37364.0,0.56295041]
[1643942056324,0.051,37366.0,37364.0,0.4960358]
[1643942056628,0.051,37366.0,37364.0,0.56295052]
[1643942057424,0.051,37366.0,37364.0,0.4960358]
[1643942059881,0.051,37366.0,37364.0,0.5460358]
[1643942062126,0.051,37366.0,37364.0,0.4960358]
[1643942062524,1.700457,37365.0,37364.0,0.4291168]
[1643942062723,0.350457,37365.0,37364.0,0.4291168]
[1643942062923,0.051,37366.0,37365.0,0.066918]
[1643942065577,0.051,37366.0,37365.0,0.36327954]
[1643942065578,0.001,37366.0,37365.0,0.36327954]
[1643942065773,0.001,37366.0,37365.0,0.920718]
[1643942066372,0.051,37366.0,37365.0,0.920718]
[1643942066772,0.001,37366.0,37365.0,0.920718]
[1643942067871,0.001,37366.0,37365.0,0.43669023]
[1643942068076,0.001,37366.0,37365.0,0.55843023]
[1643942068472,0.00020976,37366.0,37365.0,1.95843023]
[1643942069314,0.00020976,37366.0,37365.0,0.55843023]
[1643942069515,0.00020976,37366.0,37365.0,0.270718]
[1643942069717,0.00020976,37366.0,37365.0,0.170718]
[1643942069918,0.00020976,37366.0,37365.0,0.41395865]
[1643942070314,0.00020976,37366.0,37365.0,0.170718]
[1643942070714,0.01780369,37368.0,37366.0,0.65]
[1643942071014,0.01780369,37368.0,37367.0,0.115706]
[1643942071214,0.01780369,37368.0,37367.0,0.165706]
[1643942071615,0.01780369,37368.0,37367.0,0.19790231]
[1643942071816,0.0011,37369.0,37367.0,0.19790231]
[1643942072016,0.0011,37369.0,37367.0,0.33171331]
[1643942072867,0.0011,37369.0,37367.0,0.46551832]
[1643942073668,0.01780369,37368.0,37367.0,0.41551832]
[1643942074069,0.01780369,37368.0,37367.0,0.46551832]
[1643942077017,0.0011,37369.0,37367.0,0.46551832]
[1643942077217,0.01780369,37368.0,37367.0,0.46551832]
[1643942079317,0.01780369,37368.0,37367.0,0.40361232]
[1643942080170,0.01780369,37368.0,37367.0,0.37141601]
[1643942081668,0.01780369,37368.0,37367.0,0.40361232]
[1643942082069,0.00185907,37369.0,37368.0,0.05]
[1643942082267,0.00185907,37369.0,37368.0,0.87932247]
[1643942082468,0.00185907,37369.0,37368.0,0.15593]
[1643942082967,0.01890369,37369.0,37368.0,0.15593]
[1643942083268,0.0011,37369.0,37368.0,0.15593]
[1643942083466,0.0011,37369.0,37368.0,0.80593]
[1643942083914,0.0011,37369.0,37368.0,0.15593]
[1643942085322,0.0011,37369.0,37368.0,0.40123483]
[1643942085520,0.0011,37369.0,37368.0,1.55123483]
[1643942085820,0.0011,37369.0,37368.0,1.60503483]
[1643942086618,0.0011,37369.0,37368.0,0.45503483]
[1643942087424,0.0011,37369.0,37368.0,1.30503483]
[1643942088485,0.0011,37369.0,37368.0,2.45503483]
[1643942088886,0.0011,37369.0,37368.0,1.30503483]
[1643942089488,0.00055026,37369.0,37368.0,1.85503483]
[1643942090491,0.00055026,37369.0,37368.0,1.30503483]
[1643942091921,0.00055026,37369.0,37368.0,0.289742]
[1643942091922,0.01835395,37369.0,37368.0,0.289742]
[1643942092122,0.01835395,37369.0,37368.0,0.183812]
[1643942092320,0.01835395,37369.0,37368.0,0.133812]
[1643942093824,0.00055026,37369.0,37368.0,0.133812]
[1643942094025,0.00055026,37369.0,37368.0,0.183812]
[1643942094223,0.00055026,37369.0,37368.0,0.237612]
[1643942094622,0.00055026,37369.0,37368.0,0.48265794]
[1643942094922,0.00055026,37369.0,37368.0,0.80080384]
[1643942095198,0.00055026,37369.0,37368.0,0.90080384]
[1643942095385,0.00055026,37369.0,37368.0,2.95080384]
[1643942095584,0.0021,37375.0,37369.0,2.24294758]
[1643942095789,0.0021,37375.0,37374.0,2.64194377]
[1643942095984,0.0021,37375.0,37374.0,3.00034005]
[1643942096184,0.0021,37375.0,37374.0,3.10034005]
[1643942096985,0.0021,37375.0,37374.0,3.06814374]
[1643942097286,0.0021,37375.0,37374.0,3.29446706]
[1643942097484,0.0021,37375.0,37374.0,3.32666337]
[1643942097686,0.0021,37375.0,37374.0,3.10034005]
[1643942098295,0.0021,37375.0,37374.0,3.06814374]
[1643942098917,0.0021,37375.0,37374.0,3.10034005]
[1643942099920,0.0021,37375.0,37374.0,3.06814374]
[1643942100119,0.0021,37375.0,37374.0,3.10034005]
[1643942100828,0.0044,37378.0,37375.0,1.21566122]
[1643942100829,0.01874354,37378.0,37375.0,1.21566122]
[1643942101020,0.01874354,37378.0,37376.0,0.120686]
[1643942101222,0.01874354,37378.0,37376.0,0.33665192]
[1643942101623,0.01874354,37378.0,37376.0,0.30445561]
[1643942103172,0.01874354,37378.0,37376.0,0.170686]
[1643942103478,0.01874354,37378.0,37376.0,0.120686]
[1643942104272,0.01874354,37378.0,37376.0,0.38438347]
[1643942104475,0.01874354,37378.0,37376.0,0.120686]
[1643942104873,0.01874354,37378.0,37376.0,0.170686]
[1643942105075,0.01874354,37378.0,37376.0,0.066886]
[1643942105273,0.01874354,37378.0,37376.0,0.116886]
[1643942105474,0.01874354,37378.0,37377.0,0.21411367]
[1643942105873,0.01874354,37378.0,37376.0,0.066886]
[1643942106079,0.01874354,37378.0,37376.0,0.06364636]
[1643942106421,0.01874354,37378.0,37376.0,0.24580914]
[1643942106422,0.01780369,37377.0,37376.0,0.24580914]
[1643942106822,0.01780369,37377.0,37376.0,0.38129809]
[1643942107022,0.01780369,37377.0,37376.0,0.4134944]
[1643942109424,0.01780369,37377.0,37376.0,0.14423267]
[1643942110970,0.01780369,37377.0,37376.0,0.11203636]
[1643942111771,0.01780369,37377.0,37376.0,0.06203636]
[1643942123628,0.01280369,37377.0,37376.0,0.06203636]
[1643942124631,0.42606438,37377.0,37371.0,0.00076028]
[1643942124828,1.76280369,37372.0,37366.0,0.22632332]
[1643942125028,1.75,37372.0,37371.0,0.00028385]
[1643942125270,2.16326069,37372.0,37371.0,0.00028385]
[1643942125472,2.41542959,37372.0,37371.0,0.00028385]
[1643942126070,2.06497259,37372.0,37363.0,0.31633966]
[1643942126271,0.01280369,37364.0,37363.0,0.31633966]
[1643942126575,0.22767175,37369.0,37363.0,1.09186347]
[1643942126769,0.116923,37370.0,37363.0,1.31818679]
[1643942126970,0.066923,37370.0,37363.0,1.09186347]
[1643942127169,0.0023092,37364.0,37363.0,1.15878247]
[1643942128371,0.0023092,37364.0,37363.0,0.35878247]
[1643942128772,0.0023092,37364.0,37363.0,0.15693534]
[1643942129721,0.0023092,37364.0,37363.0,0.066919]
[1643942130921,0.183838,37366.0,37363.0,0.066919]
[1643942131120,0.183838,37366.0,37365.0,0.37386672]
[1643942132974,0.183838,37366.0,37364.0,0.43688217]
[1643942133375,0.183838,37366.0,37364.0,0.43612254]
[1643942133774,0.183838,37366.0,37364.0,0.133824]
[1643942134377,0.18369544,37366.0,37364.0,0.133824]
[1643942134777,0.18369544,37366.0,37364.0,0.34038317]
[1643942135174,0.18369544,37366.0,37364.0,0.133824]
[1643942137122,0.18369544,37366.0,37365.0,0.21022587]
[1643942137317,0.18369544,37366.0,37364.0,0.133824]
[1643942138918,0.25963421,37366.0,37364.0,0.133824]
[1643942139117,0.18369544,37366.0,37364.0,0.133824]
[1643942141278,0.066912,37367.0,37364.0,0.183824]
[1643942141479,0.0669,37371.0,37366.0,0.05]
[1643942141681,0.25888316,37376.0,37372.0,0.08697896]
[1643942141878,0.01950273,37377.0,37373.0,0.05]
[1643942142277,0.01950273,37377.0,37375.0,0.2697512]
[1643942143077,0.066897,37376.0,37375.0,0.2697512]
[1643942143279,0.066897,37376.0,37375.0,0.47044279]
[1643942143677,0.13549832,37378.0,37375.0,0.47044279]
[1643942143923,0.05,37376.0,37375.0,0.47044279]
[1643942144525,0.05,37376.0,37375.0,0.52044279]
[1643942144725,0.05,37376.0,37375.0,0.47044279]
[1643942144927,0.00169932,37378.0,37375.0,0.52044279]
[1643942145230,0.00169932,37378.0,37376.0,0.13377927]
[1643942145426,0.00093985,37378.0,37376.0,0.13377927]
[1643942145626,0.00169932,37378.0,37376.0,0.13377927]
[1643942145825,0.00169932,37378.0,37376.0,0.20066827]
[1643942146027,0.00169932,37378.0,37376.0,0.066889]
[1643942146626,0.00093985,37378.0,37373.0,0.05]
[1643942146827,0.00093985,37378.0,37372.0,0.133799]
[1643942147876,0.05,37376.0,37372.0,0.133799]
[1643942148072,0.0669,37375.0,37373.0,0.05]
[1643942148874,0.0669,37375.0,37372.0,0.183799]
[1643942149476,0.0669,37375.0,37373.0,0.066899]
[1643942149675,0.0669,37375.0,37373.0,0.13379879]
[1643942149881,0.13379457,37377.0,37373.0,0.108099]
[1643942150178,0.18379457,37377.0,37375.0,0.05]
[1643942150976,0.25069057,37377.0,37375.0,0.116892]
[1643942152022,0.20069057,37377.0,37375.0,0.116892]
[1643942152822,0.20069057,37377.0,37375.0,0.116232]
[1643942153027,0.00066,37376.0,37375.0,0.116232]
[1643942153226,0.20069057,37377.0,37375.0,0.04934]
[1643942153227,0.25069057,37377.0,37375.0,0.04934]
[1643942153423,0.00066,37376.0,37375.0,0.04934]
[1643942154125,0.25069057,37377.0,37375.0,0.04934]
[1643942154126,0.13379457,37377.0,37375.0,0.116231]
[1643942154724,0.13445457,37377.0,37375.0,0.116231]
[1643942155179,0.18445457,37377.0,37375.0,0.04934]
[1643942155370,0.18445457,37377.0,37375.0,0.116241]
[1643942155771,0.31825857,37377.0,37375.0,0.116241]
[1643942157171,0.18445457,37377.0,37375.0,0.066901]
[1643942157774,0.05,37376.0,37375.0,0.066901]
[1643942158473,0.05,37376.0,37374.0,0.04934]
[1643942158675,0.00066,37375.0,37373.0,0.066905]
[1643942158922,0.0675642,37375.0,37373.0,0.066905]
[1643942160122,0.0675642,37375.0,37374.0,0.04934]
[1643942160923,0.1169042,37375.0,37373.0,0.03010605]
[1643942161324,0.1669042,37375.0,37373.0,0.03010605]
[1643942163171,0.1669042,37375.0,37371.0,0.13456358]
[1643942163375,0.05,37372.0,37371.0,0.133804]
[1643942163571,0.01328942,37372.0,37371.0,0.13456358]
[1643942163773,0.06328942,37372.0,37371.0,0.13456358]
[1643942164072,0.27434893,37372.0,37371.0,0.13456358]
[1643942164571,0.27434893,37372.0,37371.0,0.133804]
[1643942165075,0.06328942,37372.0,37371.0,0.133804]
[1643942166722,0.05,37372.0,37371.0,0.128804]
[1643942166924,1.45,37371.0,37368.0,0.00529435]
[1643942167130,1.71328942,37369.0,37363.0,0.62264138]
[1643942167326,0.01328942,37364.0,37360.0,0.02088984]
[1643942167525,0.01328942,37361.0,37360.0,0.02088984]
[1643942167826,0.01328942,37361.0,37358.0,0.10363858]
[1643942168124,0.066926,37361.0,37359.0,0.24800359]
[1643942168324,0.066926,37361.0,37358.0,0.0676321]
[1643942168325,0.0802161,37360.0,37358.0,0.0676321]
[1643942168527,0.0802161,37360.0,37358.0,0.0007041]
[1643942168724,0.0802161,37360.0,37358.0,0.03741468]
[1643942169124,0.06692668,37360.0,37358.0,0.0007041]
[1643942169425,0.23698394,37359.0,37358.0,0.066927]
[1643942169625,0.35392294,37359.0,37357.0,0.00094529]
[1643942169829,0.35392294,37359.0,37357.0,0.00070785]
[1643942169830,1.300457,37358.0,37357.0,0.00070785]
[1643942170486,1.77965039,37358.0,37352.0,0.066943]
[1643942170684,0.41740057,37357.0,37356.0,0.00070786]
[1643942170984,0.83470346,37357.0,37356.0,0.00070786]
[1643942171583,1.43470346,37357.0,37356.0,0.00070786]
[1643942171783,1.43470346,37357.0,37351.0,0.0216914]
[1643942171985,0.6647608,37356.0,37355.0,0.00070787]
[1643942172184,0.67805022,37356.0,37355.0,0.00070787]
[1643942172387,0.72805022,37356.0,37355.0,0.00070787]
[1643942172585,2.07805022,37356.0,37355.0,0.00070787]
[1643942172985,0.350457,37354.0,37352.0,0.00023744]
[1643942173183,0.71708144,37352.0,37351.0,0.02145396]
[1643942173385,0.36662444,37352.0,37351.0,0.02145396]
[1643942173586,0.36262603,37352.0,37351.0,0.02145396]
[1643942173789,0.36262603,37352.0,37351.0,0.00023744]
[1643942174228,0.36262603,37352.0,37350.0,0.02028141]
[1643942174529,0.01328942,37351.0,37350.0,0.02056543]
[1643942175328,0.01328942,37351.0,37350.0,0.02028141]
[1643942175730,0.01328942,37351.0,37350.0,0.00023744]
[1643942176230,0.01328942,37351.0,37349.0,0.00052147]
[1643942176231,0.08023842,37351.0,37349.0,0.00052147]
[1643942176432,0.33748122,37351.0,37349.0,0.00028403]
[1643942176630,0.33748122,37351.0,37348.0,0.5025]
[1643942176830,0.01328942,37349.0,37348.0,0.50349656]
[1643942177229,0.01328942,37349.0,37348.0,0.50325912]
[1643942177875,0.01328942,37349.0,37348.0,0.569445]
[1643942178475,0.01328942,37349.0,37348.0,0.56968244]
[1643942178676,0.01328942,37349.0,37348.0,0.00023744]
[1643942178880,0.08024385,37349.0,37347.0,0.00075913]
[1643942179179,0.14719785,37349.0,37347.0,0.00075913]
[1643942179379,0.24719785,37349.0,37347.0,0.00075913]
[1643942180175,0.24719785,37349.0,37343.0,0.00023744]
[1643942180376,0.08024334,37344.0,37342.0,0.15222949]
[1643942180577,0.13024334,37344.0,37342.0,0.15222949]
[1643942181544,0.13024334,37344.0,37342.0,0.01832849]
[1643942181545,0.05,37343.0,37342.0,0.01832849]
[1643942181745,0.1,37343.0,37342.0,0.01832849]
[1643942182339,0.80170739,37343.0,37342.0,0.01832849]
[1643942182542,0.40170739,37343.0,37342.0,0.00023744]
[1643942182740,0.22577278,37342.0,37341.0,0.00075918]
[1643942182940,0.2390622,37342.0,37341.0,0.00075918]
[1643942183344,0.01328942,37342.0,37341.0,0.00075918]
[1643942183642,0.13391692,37344.0,37341.0,0.00075918]
[1643942183845,0.13391692,37344.0,37340.0,0.06696]
[1643942183846,0.06695392,37344.0,37340.0,0.06696]
[1643942184043,0.06695392,37344.0,37340.0,0.06771918]
[1643942184245,0.06695392,37344.0,37343.0,0.05]
[1643942184445,0.06695392,37344.0,37342.0,0.133897]
[1643942184747,0.06694343,37347.0,37343.0,0.30227252]
[1643942185047,0.1191,37359.0,37346.0,0.05]
[1643942185285,0.60607034,37358.0,37353.0,0.19666032]
[1643942185782,0.25463227,37356.0,37350.0,0.0538]
[1643942185979,0.41739998,37355.0,37350.0,0.0538]
[1643942186379,0.41739998,37355.0,37351.0,0.0007591]
[1643942186579,0.41739998,37355.0,37351.0,0.00099654]
[1643942186978,0.46739998,37355.0,37351.0,0.00099654]
[1643942187178,0.11694298,37355.0,37351.0,0.00099654]
[1643942187380,0.13388596,37354.0,37351.0,0.00023744]
[1643942187579,0.13388596,37354.0,37351.0,0.0007591]
[1643942187779,0.517404,37353.0,37351.0,0.0007591]
[1643942187979,0.800457,37352.0,37351.0,0.00099654]
[1643942188180,0.350457,37352.0,37351.0,0.00099654]
[1643942188381,0.350457,37352.0,37351.0,0.0007591]
[1643942188581,0.350457,37352.0,37347.0,0.06718244]
[1643942188781,0.23388994,37353.0,37350.0,0.00075911]
[1643942189034,0.27021367,37352.0,37350.0,0.00075911]
[1643942189540,1.000457,37351.0,37350.0,0.00075911]
[1643942189735,1.000457,37351.0,37347.0,0.00023744]
[1643942189736,1.100457,37351.0,37347.0,0.00023744]
[1643942189936,0.13390398,37350.0,37349.0,0.00075911]
[1643942190138,1.03436098,37350.0,37349.0,0.00075911]
[1643942190938,1.15,37349.0,37345.0,0.01882756]
[1643942191141,1.00257367,37347.0,37346.0,0.00023753]
[1643942191337,1.85182705,37347.0,37346.0,0.00023753]
[1643942191541,0.05,37346.0,37345.0,0.01882756]
[1643942191739,0.64153705,37346.0,37345.0,0.01882756]
[1643942191938,0.77545627,37346.0,37343.0,0.00023753]
[1643942192143,0.23873628,37345.0,37343.0,0.00023753]
[1643942192339,0.57197976,37344.0,37340.0,0.02001417]
[1643942192541,0.22152276,37344.0,37340.0,0.02001417]
[1643942192779,0.27152276,37344.0,37340.0,0.02001417]
[1643942192980,0.350457,37343.0,37340.0,0.02001417]
[1643942193181,0.24110928,37342.0,37340.0,0.01977664]
[1643942193378,0.350457,37341.0,37340.0,0.01977664]
[1643942193577,0.57884695,37341.0,37340.0,0.01977664]
[1643942193777,0.57884695,37341.0,37340.0,0.02001417]
[1643942193977,0.05,37342.0,37339.0,0.37047988]
[1643942194278,0.0669653,37342.0,37339.0,0.37047988]
[1643942194680,0.0669653,37342.0,37339.0,0.36972126]
[1643942194880,0.0669653,37342.0,37339.0,0.37047988]
[1643942195276,0.0669653,37342.0,37339.0,0.32047988]
[1643942195876,0.0669653,37342.0,37339.0,0.31972126]
[1643942196078,0.0669653,37342.0,37339.0,0.32047988]
[1643942196523,0.0669653,37342.0,37339.0,0.06771862]
[1643942196924,0.0669653,37342.0,37337.0,0.01872701]
[1643942197225,0.0669653,37342.0,37339.0,0.00075862]
[1643942198024,0.28769746,37342.0,37339.0,0.00075862]
[1643942198325,0.29089114,37342.0,37339.0,0.00075862]
[1643942198524,0.0669653,37342.0,37339.0,0.00075862]
[1643942199424,0.0669653,37342.0,37339.0,0.066958]
[1643942199625,0.0669653,37342.0,37339.0,0.06771662]
[1643942200681,0.0669653,37342.0,37339.0,0.066958]
[1643942200878,0.0669653,37342.0,37339.0,0.06771662]
[1643942201778,0.0669653,37342.0,37339.0,0.066958]
[1643942201981,0.0669653,37342.0,37339.0,0.06724119]
[1643942203080,0.0669653,37342.0,37339.0,0.066958]
[1643942203286,0.0669653,37342.0,37339.0,0.06771685]
[1643942203682,0.23942728,37343.0,37339.0,0.06771685]
[1643942204138,0.23942728,37343.0,37339.0,0.066958]
[1643942204339,0.23942728,37343.0,37339.0,0.06771684]
[1643942205340,0.0669653,37342.0,37339.0,0.066958]
[1643942205541,0.0669653,37342.0,37339.0,0.06771684]
[1643942206043,0.57614011,37341.0,37339.0,0.06771684]
[1643942206241,0.62614011,37341.0,37339.0,0.06771684]
[1643942206440,0.27286223,37341.0,37339.0,0.06771684]
[1643942206641,0.22286223,37341.0,37339.0,0.066958]
[1643942206843,0.1169653,37342.0,37339.0,0.066958]
[1643942207042,0.22082239,37341.0,37339.0,0.066958]
[1643942207243,0.22301677,37341.0,37339.0,0.06719428]
[1643942207448,0.22301677,37341.0,37339.0,0.00023628]
[1643942207681,0.1169653,37342.0,37338.0,0.00099513]
[1643942207874,0.1169653,37342.0,37337.0,0.00023628]
[1643942208075,0.1169653,37342.0,37338.0,0.00075885]
[1643942208678,0.1169653,37342.0,37339.0,0.066959]
[1643942208974,0.1169653,37342.0,37339.0,0.06719528]
[1643942209174,0.1169653,37342.0,37339.0,0.06771785]
[1643942209579,0.350457,37340.0,37339.0,0.00075885]
[1643942209777,0.59239333,37340.0,37339.0,0.00075885]
[1643942209980,1.04239333,37340.0,37339.0,0.00075885]
[1643942210176,0.06697734,37339.0,37337.0,0.00023628]
[1643942210377,0.23141386,37338.0,37336.0,0.01023628]
[1643942210577,0.23289199,37337.0,37336.0,0.01023628]
[1643942210778,0.28289199,37337.0,37336.0,0.01023628]
[1643942212425,0.51870364,37337.0,37336.0,0.01023628]
[1643942212826,0.28289199,37337.0,37336.0,0.01]
[1643942213224,0.28289199,37337.0,37336.0,0.01023628]
[1643942214026,1.28334899,37337.0,37336.0,0.01]
[1643942214227,0.63334899,37337.0,37336.0,0.01]
[1643942214426,0.63334899,37337.0,37336.0,0.01023628]
[1643942215308,0.63334899,37337.0,37336.0,0.01]